bitfinex/quotes_ETHUSD_20250413
["timestamp","ask_amount","ask_price","bid_price","bid_amount"]
[1744582368812,5.03909,1587.6,1587.2,10.08047]
[1744582369012,5.03942,1587.5,1587.1,11.7457216]
[1744582370642,5.03942,1587.5,1587.1,5.04056]
[1744582371709,2.07074884,1587.7,1586.9,8.34843014]
[1744582371710,5.04011,1587.3,1586.9,8.34843014]
[1744582372052,5.704361,1587.3,1586.9,5.04126]
[1744582372351,6.64233,1587.4,1587.0,5.04095]
[1744582372555,1.6024,1587.4,1587.1,5.04059]
[1744582372737,5.03907,1587.6,1587.2,5.04021]
[1744582373108,10.07843,1587.6,1587.2,5.04021]
[1744582373346,1.007843,1587.5,1587.2,5.04021]
[1744582373541,1.5905,1587.4,1586.9,5.04125]
[1744582373748,5.04023,1587.3,1586.9,5.04125]
[1744582373947,5.04023,1587.3,1587.0,0.24718669]
[1744582375152,5.03968,1587.5,1587.1,5.04042]
[1744582375316,6.62956,1587.6,1587.2,10.08048]
[1744582375647,6.62956,1587.6,1587.0,1.92909664]
[1744582375648,8.14322688,1587.6,1587.1,5.0406]
[1744582375857,5.03937,1587.5,1587.3,0.24718669]
[1744582376041,5.03937,1587.5,1587.1,5.04046]
[1744582376242,5.03937,1587.5,1587.4,0.24718669]
[1744582376442,5.03937,1587.5,1587.1,5.04046]
[1744582376642,5.03937,1587.5,1587.4,0.24718669]
[1744582376842,6.35762969,1587.5,1587.1,5.04046]
[1744582377040,6.35762969,1587.5,1587.4,0.24718669]
[1744582377652,6.35762969,1587.5,1587.1,5.04046]
[1744582377852,6.35762969,1587.5,1587.4,0.24718669]
[1744582378049,6.35762969,1587.5,1587.1,5.04046]
[1744582378262,6.35762969,1587.5,1587.4,0.24718669]
[1744582378420,6.35762969,1587.5,1587.1,5.04046]
[1744582378622,6.35762969,1587.5,1587.4,0.24718669]
[1744582378821,6.35762969,1587.5,1587.1,5.04046]
[1744582379046,6.35762969,1587.5,1587.4,0.24718669]
[1744582379233,6.35762969,1587.5,1587.1,5.04046]
[1744582379428,7.7605,1588.0,1587.4,0.24718669]
[1744582379681,5.03893,1587.7,1587.3,6.65877]
[1744582379828,5.0392,1587.6,1587.5,0.24718669]
[1744582380021,10.07854,1587.6,1587.2,3.0]
[1744582380353,5.03938,1587.5,1587.2,5.04028]
[1744582380556,5.03938,1587.5,1587.3,0.24718669]
[1744582380744,6.047238,1587.5,1587.3,0.24718669]
[1744582381731,5.03968,1587.4,1587.3,0.24718669]
[1744582381939,5.04006,1587.3,1587.0,1.6189]
[1744582382141,5.52359059,1587.3,1587.1,0.24718669]
[1744582382349,5.04114,1587.0,1586.6,6.69422]
[1744582382672,5.04131,1586.9,1586.7,0.23388832]
[1744582382873,6.59749,1586.8,1586.7,0.23388832]
[1744582383026,6.59887,1586.4,1586.1,0.05]
[1744582383221,11.64199,1586.4,1586.1,0.05]
[1744582383420,1.5559,1586.6,1586.2,5.25803188]
[1744582383618,1.5559,1586.6,1586.3,5.04305]
[1744582384270,6.59813,1586.6,1586.4,0.21471188]
[1744582384421,1.5559,1586.6,1586.4,0.21471188]
[1744582384623,6.17,1586.8,1586.4,1.652]
[1744582384941,5.04146,1586.9,1586.5,10.29979188]
[1744582385137,5.04146,1586.9,1586.5,5.25725188]
[1744582385655,5.04146,1586.9,1586.5,10.29958188]
[1744582385852,8.04096,1587.0,1586.6,5.0421]
[1744582386058,1.5559,1587.1,1586.8,5.04131]
[1744582386565,5.59269906,1587.2,1586.9,0.21471188]
[1744582386966,14.67309,1587.3,1586.9,5.04126]
[1744582387171,5.04032,1587.2,1587.0,0.21471188]
[1744582387369,14.67309,1587.3,1587.0,0.21471188]
[1744582387668,19.7133,1587.3,1586.9,5.04123]
[1744582387877,5.04032,1587.2,1587.1,0.21471188]
[1744582388024,5.04032,1587.2,1586.8,10.0828]
[1744582388224,5.04032,1587.2,1587.1,0.21471188]
[1744582388730,5.04032,1587.2,1586.8,10.0828]
[1744582389027,5.04032,1587.2,1586.9,0.21471188]
[1744582389268,5.04032,1587.2,1586.8,10.0828]
[1744582389769,5.04032,1587.2,1586.9,0.21471188]
[1744582390318,5.04032,1587.2,1586.8,10.0828]
[1744582390319,7.011661,1587.2,1586.8,5.04138]
[1744582390479,12.052211,1587.2,1587.0,0.21471188]
[1744582390776,12.052211,1587.2,1587.1,0.21471188]
[1744582391126,12.052211,1587.2,1586.8,5.04138]
[1744582391351,12.052211,1587.2,1586.9,0.21770773]
[1744582391666,5.04133,1586.9,1586.5,6.6945]
[1744582391841,5.04133,1586.9,1586.6,5.04221]
[1744582393460,11.63833,1587.0,1586.6,5.04221]
[1744582393779,1.5559,1587.0,1586.7,5.04172]
[1744582393988,1.6394,1587.2,1586.9,5.04108]
[1744582394184,1.6394,1587.2,1587.0,5.04073]
[1744582394344,1.6394,1587.2,1586.9,5.04125]
[1744582394543,1.6394,1587.2,1586.9,10.08233]
[1744582394764,1.6394,1587.2,1586.9,5.04108]
[1744582394971,6.67996,1587.2,1586.8,6.62884]
[1744582395166,5.04071,1587.1,1586.7,5.04187]
[1744582395371,10.08155,1587.1,1586.7,5.04172]
[1744582395539,5.04071,1587.1,1586.7,5.04172]
[1744582396075,7.3477,1587.2,1586.7,5.04172]
[1744582396076,7.3477,1587.2,1586.8,5.04159]
[1744582397478,1.6394,1587.2,1586.8,1.008331]
[1744582397640,5.03969,1587.4,1587.0,10.08162]
[1744582397850,1.5247,1587.5,1587.2,5.04002]
[1744582398143,6.56344,1587.7,1587.3,6.56363]
[1744582398346,1.5247,1587.9,1587.6,5.03893]
[1744582398778,1.5247,1587.9,1587.3,15.17076]
[1744582398977,5.03866,1587.8,1587.4,5.0396]
[1744582399182,5.03866,1587.8,1587.4,10.07909]
[1744582399777,6.198769,1587.8,1587.4,5.03949]
[1744582399955,5.03875,1587.7,1587.4,5.03949]
[1744582400147,10.07769,1587.7,1587.3,15.17077]
[1744582400485,5.03875,1587.7,1587.3,15.17077]
[1744582400679,5.03875,1587.7,1587.3,6.56377]
[1744582400884,0.503875,1587.6,1587.3,6.56377]
[1744582402161,0.503875,1587.6,1587.3,11.60358]
[1744582402400,5.03846,1587.8,1587.4,5.03964]
[1744582402608,5.03846,1587.8,1587.4,5.0395]
[1744582403104,10.07707,1587.8,1587.4,5.0395]
[1744582403602,5.03846,1587.8,1587.4,10.079]
[1744582404108,5.03846,1587.8,1587.5,0.19489458]
[1744582404271,6.198588,1587.8,1587.5,0.19489458]
[1744582405315,11.237188,1587.8,1587.5,0.19489458]
[1744582405501,6.198588,1587.8,1587.5,0.19489458]
[1744582406203,1.5247,1587.9,1587.5,0.19489458]
[1744582406502,1.5247,1588.1,1587.5,0.25787853]
[1744582406673,1.5247,1588.1,1587.6,2.0738]
[1744582406874,6.56153,1588.3,1587.9,10.07591]
[1744582407079,2.71721051,1588.3,1588.0,5.03763]
[1744582407293,5.03656,1588.4,1588.1,5.03741]
[1744582407806,10.07328,1588.4,1588.2,0.19362572]
[1744582408174,10.07328,1588.4,1588.0,6.56143]
[1744582408390,10.07328,1588.4,1588.1,0.19362572]
[1744582409531,5.03656,1588.4,1588.1,0.19362572]
[1744582410236,5.03684,1588.3,1588.1,0.19362572]
[1744582415136,10.07389,1588.3,1588.1,0.19362572]
[1744582415434,6.65674,1588.2,1588.1,0.19362572]
[1744582415818,6.65674,1588.2,1587.6,1.605]
[1744582415819,5.03782,1588.0,1587.6,1.605]
[1744582416029,5.03757,1588.1,1587.7,10.07716]
[1744582417735,6.65676,1588.2,1587.8,5.03815]
[1744582417936,6.65615,1588.4,1587.9,1.605]
[1744582418235,1.6196,1588.4,1588.0,5.10048466]
[1744582418424,5.03625,1588.5,1588.2,5.03704]
[1744582418627,5.03625,1588.5,1588.2,6.64204]
[1744582419143,5.03625,1588.5,1588.3,0.15318185]
[1744582419641,5.03694,1588.3,1588.0,1.605]
[1744582419815,5.03651,1588.4,1588.0,11.68038]
[1744582420003,5.03651,1588.4,1588.0,7.810658]
[1744582420206,5.03651,1588.4,1588.1,5.03735]
[1744582421038,10.0732,1588.4,1588.0,7.810658]
[1744582421343,5.0369,1588.3,1588.0,6.64262]
[1744582421539,5.03746,1588.2,1587.8,6.6434]
[1744582421727,1.6196,1588.3,1587.8,1.605]
[1744582421920,5.03624,1588.5,1588.1,6.6423]
[1744582422119,5.03624,1588.5,1588.2,5.03702]
[1744582423029,5.03592,1588.6,1588.2,5.03702]
[1744582423336,5.03592,1588.6,1588.2,5.03698]
[1744582423539,13.56424621,1588.9,1588.5,5.03606]
[1744582423714,18.12314,1588.9,1588.5,7.144666]
[1744582423924,5.03504,1588.9,1588.6,5.03582]
[1744582424118,6.65429,1589.0,1588.6,5.03582]
[1744582424518,4.6196,1589.0,1588.5,7.144656]
[1744582424713,5.03554,1588.8,1588.4,5.03648]
[1744582424931,5.0356,1588.7,1588.4,5.03648]
[1744582425446,11.69097,1588.7,1588.3,6.64181]
[1744582426556,11.69097,1588.7,1588.2,5.58711]
[1744582426557,5.03633,1588.5,1588.1,2.26923]
[1744582426753,5.03714,1588.3,1587.9,6.64307]
[1744582426951,1.6196,1588.4,1587.9,1.605]
[1744582427124,6.65627,1588.4,1588.0,5.03762]
[1744582427315,11.69299,1588.4,1588.0,5.03762]
[1744582427919,1.6196,1588.4,1587.7,1.5092]
[1744582428232,5.03749,1588.1,1587.7,6.54766]
[1744582428433,5.03749,1588.1,1587.8,5.03839]
[1744582429030,5.03779,1588.0,1587.7,1.5092]
[1744582429256,6.53983,1588.3,1587.7,1.5092]
[1744582429257,5.03747,1588.1,1587.7,6.54793]
[1744582429566,1.503,1588.3,1587.7,6.54793]
[1744582429567,4.503,1588.3,1587.7,1.5092]
[1744582429733,4.503,1588.3,1587.5,1.5092]
[1744582429734,1.503,1588.1,1587.5,1.5092]
[1744582429928,5.03848,1587.8,1587.5,1.5092]
[1744582430125,11.58014,1587.8,1587.4,5.03949]
[1744582430558,5.03939,1587.5,1587.3,1.5092]
[1744582430742,5.03907,1587.6,1587.2,8.028]
[1744582431037,5.0398,1587.4,1587.2,8.028]
[1744582431533,5.0398,1587.4,1587.0,1.5092]
[1744582431534,5.04,1587.3,1587.0,1.5092]
[1744582431933,5.04,1587.3,1586.9,59.04315]
[1744582432134,5.04,1587.3,1586.8,9.5372]
[1744582432135,6.54345,1587.2,1586.8,9.5372]
[1744582432471,6.54345,1587.2,1586.8,14.57867]
[1744582433073,1.503,1587.5,1587.0,5.04086]
[1744582433259,1.503,1587.5,1587.2,5.04031]
[1744582433461,6.54238,1587.5,1587.1,5.16281014]
[1744582433767,6.54238,1587.5,1586.9,0.55]
[1744582433768,5.03968,1587.4,1586.9,5.59119]
[1744582433967,5.03968,1587.4,1587.0,5.17149357]
[1744582434176,5.03968,1587.4,1587.0,10.21224357]
[1744582434377,5.03968,1587.4,1587.0,5.17144357]
[1744582435396,5.03968,1587.4,1587.0,10.21223357]
[1744582435579,5.03968,1587.4,1587.0,11.28845693]
[1744582435871,13.06709,1587.6,1587.2,6.54928]
[1744582436075,5.03909,1587.6,1587.2,11.58937]
[1744582436279,6.5418,1587.7,1587.3,5.03995]
[1744582436579,6.5418,1587.7,1587.3,5.17064357]
[1744582436784,13.655814,1587.7,1587.3,5.17064357]
[1744582438174,3.578044,1587.7,1587.4,5.03963]
[1744582438349,1.503,1587.7,1587.4,5.03963]
[1744582438551,6.54179,1587.7,1587.5,0.12951835]
[1744582438858,5.03905,1587.6,1587.5,0.12951835]
[1744582439071,5.03905,1587.6,1587.2,6.5494]
[1744582439259,5.03905,1587.6,1587.5,0.12951835]
[1744582439459,1.158084,1587.6,1587.3,5.04]
[1744582439658,6.54179,1587.7,1587.5,0.12951835]
[1744582439850,11.58076,1587.7,1587.3,5.04]
[1744582440410,5.03908,1587.6,1587.4,0.12951835]
[1744582440586,5.03937,1587.5,1587.4,0.12951835]
[1744582440770,5.04061,1587.2,1586.8,6.55062]
[1744582440972,5.04003,1587.3,1586.8,1.5092]
[1744582441165,6.54239,1587.5,1587.1,5.04049]
[1744582441365,1.503,1587.5,1587.2,5.0403]
[1744582441696,8.031,1587.6,1587.1,1.5092]
[1744582441917,3.0,1587.8,1587.4,5.03944]
[1744582442055,12.83741,1587.9,1587.5,6.54539]
[1744582442397,1.6293,1587.9,1587.5,1.5062]
[1744582442552,6.66741,1587.9,1587.5,1.5062]
[1744582442763,5.03844,1587.8,1587.5,6.54538]
[1744582443087,1.6293,1587.9,1587.6,5.03894]
[1744582443285,6.66751,1587.9,1587.5,6.5454]
[1744582443469,5.03848,1587.8,1587.5,2.2111344]
[1744582443797,5.03848,1587.8,1587.5,1.5062]
[1744582444151,5.03884,1587.7,1587.5,1.5062]
[1744582444358,10.07781,1587.7,1587.3,6.54619]
[1744582444556,5.03845,1587.8,1587.3,6.54609]
[1744582444855,5.03845,1587.8,1587.5,5.03929]
[1744582445361,10.0771,1587.8,1587.4,5.03963]
[1744582445562,5.03894,1587.7,1587.3,1.5062]
[1744582445764,5.03894,1587.7,1587.2,5.04027]
[1744582445765,5.03938,1587.5,1587.2,5.04027]
[1744582445955,5.03926,1587.6,1587.2,10.08043]
[1744582446151,10.0785,1587.6,1587.2,6.198823]
[1744582446356,5.03938,1587.5,1587.2,5.04016]
[1744582446808,6.66806,1587.7,1587.3,5.03989]
[1744582447026,11.70702,1587.7,1587.3,5.03982]
[1744582447213,5.03909,1587.6,1587.2,5.04028]
[1744582447387,5.03909,1587.6,1587.2,10.08046]
[1744582447575,5.03909,1587.6,1587.2,11.294126]
[1744582448186,5.03942,1587.5,1587.2,6.253846]
[1744582448388,5.03942,1587.5,1587.2,5.04018]
[1744582448607,5.03942,1587.5,1587.1,6.54676]
[1744582449029,5.03942,1587.5,1587.1,11.58722]
[1744582450607,5.03909,1587.6,1587.2,5.04022]
[1744582450806,6.17,1587.8,1587.5,5.03922]
[1744582450992,5.03843,1587.8,1587.5,5.03922]
[1744582451305,6.66744,1587.9,1587.5,10.07841]
[1744582451509,1.6293,1587.9,1587.6,5.03882]
[1744582451830,8.031,1588.0,1587.7,5.0386]
[1744582451978,59.50452998,1588.4,1587.9,10.07603]
[1744582451979,9.66614,1588.3,1587.9,10.07603]
[1744582452180,9.66614,1588.3,1587.8,5.03823]
[1744582452400,5.03726,1588.2,1587.8,10.07652]
[1744582452912,5.0375,1588.1,1587.7,11.58347]
[1744582453100,1.6293,1588.2,1587.5,7.09553]
[1744582453404,6.66766,1587.9,1587.5,7.09553]
[1744582453625,11.70604,1587.9,1587.5,7.09553]
[1744582453920,5.03846,1587.8,1587.5,6.54553]
[1744582454079,7.838264,1587.9,1587.5,5.03933]
[1744582454274,7.838264,1587.9,1587.5,5.0392]
[1744582454612,12.876554,1587.9,1587.5,5.0392]
[1744582454777,7.838194,1587.9,1587.5,10.07839]
[1744582454975,1.6293,1587.9,1587.6,5.03903]
[1744582455200,6.6668,1588.1,1587.7,5.03856]
[1744582455397,1.6293,1588.1,1587.6,1.56918065]
[1744582455615,1.6293,1588.3,1588.0,5.03769]
[1744582455818,18.85972208,1588.5,1588.1,5.0372]
[1744582456128,26.28568629,1588.5,1588.1,5.0372]
[1744582456433,5.03684,1588.3,1588.0,5.03776]
[1744582456727,8.03655,1588.4,1588.0,10.07537]
[1744582456901,9.6363,1588.5,1588.1,5.03722]
[1744582457229,16.139846,1588.5,1588.1,6.54342]
[1744582457434,16.139846,1588.5,1588.1,11.58071]
[1744582457798,21.176246,1588.5,1588.1,6.54342]
[1744582458046,1.6293,1588.5,1588.1,6.54342]
[1744582458226,6.66561,1588.5,1588.1,6.54342]
[1744582458435,5.03658,1588.4,1588.1,6.54342]
[1744582458904,6.66561,1588.5,1588.1,6.54342]
[1744582459348,6.66561,1588.5,1588.1,11.58072]
[1744582459557,6.66561,1588.5,1588.1,12.738792]
[1744582459842,6.66561,1588.5,1588.2,5.03713]
[1744582460049,5.03593,1588.6,1588.3,5.03682]
[1744582460909,10.07199,1588.6,1588.2,5.03713]
[1744582461609,5.03593,1588.6,1588.2,5.03713]
[1744582461809,5.03593,1588.6,1588.2,11.16308231]
[1744582462720,10.07201,1588.6,1588.2,6.12595231]
[1744582462920,5.03628,1588.5,1588.2,6.12595231]
[1744582463120,10.0721,1588.6,1588.2,6.12595231]
[1744582463333,5.03593,1588.6,1588.3,5.03682]
[1744582463937,7.7956,1588.8,1588.4,5.03625]
[1744582463938,11.69652,1588.8,1588.4,5.03625]
[1744582464250,6.66097,1588.8,1588.4,5.03625]
[1744582464416,5.03568,1588.7,1588.4,5.03625]
[1744582464615,5.03568,1588.7,1588.3,7.902432]
[1744582465251,5.03568,1588.7,1588.3,12.939152]
[1744582465413,5.03568,1588.7,1588.4,1.05474765]
[1744582465645,5.03568,1588.7,1588.3,12.939042]
[1744582466046,5.03584,1588.7,1588.3,1.661]
[1744582466246,10.07168,1588.7,1588.3,6.69778]
[1744582466470,5.03584,1588.7,1588.3,11.7345]
[1744582466669,11.69622,1588.8,1588.4,5.03649]
[1744582466870,11.69622,1588.8,1588.4,6.209911]
[1744582467065,5.03569,1588.7,1588.4,1.173421]
[1744582467252,5.03598,1588.6,1588.3,1.661]
[1744582467459,5.03623,1588.5,1588.3,1.661]
[1744582470286,5.03598,1588.6,1588.3,1.661]
[1744582470583,5.0356,1588.7,1588.3,11.73454]
[1744582470783,5.0356,1588.7,1588.3,13.07984511]
[1744582470972,5.0356,1588.7,1588.3,13.01689123]
[1744582471373,5.0356,1588.7,1588.4,5.03649]
[1744582473386,10.07134,1588.7,1588.3,7.98008123]
[1744582474385,5.03519,1588.9,1588.4,0.55]
[1744582474573,10.07106,1588.8,1588.4,5.38570512]
[1744582474955,5.03564,1588.7,1588.4,0.34933512]
[1744582475385,5.03595,1588.6,1588.3,1.661]
[1744582475590,5.03636,1588.5,1588.1,11.71386]
[1744582475889,10.07287,1588.5,1588.1,6.67643]
[1744582476388,5.03657,1588.4,1588.0,13.04376]
[1744582476558,10.07335,1588.4,1588.0,16.0172899]
[1744582476890,10.07335,1588.4,1588.0,21.0549299]
[1744582476891,5.03657,1588.4,1588.0,21.0549299]
[1744582477291,10.07326,1588.4,1588.0,21.0549299]
[1744582477585,10.07326,1588.4,1588.0,16.0171699]
[1744582477794,5.03657,1588.4,1588.1,5.03745]
[1744582478789,10.07328,1588.4,1588.0,16.0171599]
[1744582478957,5.03699,1588.3,1588.0,8.006]
[1744582479267,11.080468,1588.4,1588.0,13.04372]
[1744582479988,10.07319,1588.4,1588.0,13.04372]
[1744582480389,1.6659,1588.3,1587.7,5.03858]
[1744582480559,1.6659,1588.3,1587.6,6.67803]
[1744582480560,5.03774,1588.1,1587.6,6.67803]
[1744582480765,11.74182,1588.0,1587.6,6.67803]
[1744582481990,11.74194,1588.0,1587.6,6.67803]
[1744582482492,11.74181,1588.0,1587.6,7.85606442]
[1744582483087,1.6659,1588.0,1587.6,7.85595442]
[1744582483294,1.6659,1588.0,1587.7,10.07713]
[1744582483701,6.70309,1588.2,1587.8,5.03829]
[1744582483900,6.70309,1588.2,1587.9,5.03809]
[1744582484795,6.70245,1588.4,1587.9,6.67704]
[1744582485197,5.03688,1588.3,1588.0,5.03767]
[1744582485904,6.70245,1588.4,1588.0,10.0753]
[1744582486073,6.70245,1588.4,1588.0,11.24673]
[1744582486398,5.03655,1588.4,1588.1,5.03742]
[1744582486606,5.0362,1588.5,1588.2,6.6761]
[1744582486912,9.22242208,1588.8,1588.3,5.03659]
[1744582487117,5.03567,1588.7,1588.3,5.03659]
[1744582487420,5.036,1588.6,1588.4,0.503659]
[1744582487572,5.03652,1588.4,1588.1,5.03741]
[1744582487775,10.07334,1588.4,1588.0,7.81821]
[1744582487978,5.03625,1588.5,1588.1,5.03728]
[1744582488183,5.03657,1588.4,1588.0,12.85582]
[1744582488384,5.03657,1588.4,1588.1,5.0374]
[1744582489074,5.03625,1588.5,1588.1,10.07475]
[1744582489474,5.03625,1588.5,1588.2,5.03709]
[1744582490582,5.03625,1588.5,1588.1,10.07469]
[1744582490785,5.03625,1588.5,1588.1,11.36649807]
[1744582491109,5.03662,1588.4,1588.1,1.29180807]
[1744582491278,10.0734,1588.4,1588.0,6.64669]
[1744582491895,5.03662,1588.4,1588.0,11.68431]
[1744582492191,5.03624,1588.5,1588.1,5.0374]
[1744582492376,10.07261,1588.5,1588.1,5.0374]
[1744582492576,5.03653,1588.4,1588.1,1.168412]
[1744582492800,10.07328,1588.4,1588.0,11.68444]
[1744582493000,5.03653,1588.4,1588.0,11.68444]
[1744582494020,5.03653,1588.4,1588.0,6.64672]
[1744582494715,10.07321,1588.4,1588.0,6.64672]
[1744582496740,5.03697,1588.3,1588.0,6.64672]
[1744582496911,5.03697,1588.3,1588.0,8.24725769]
[1744582498542,5.03792,1588.0,1587.6,5.03889]
[1744582498740,5.03847,1587.8,1587.5,8.03921]
[1744582499111,6.69707,1588.1,1587.6,0.55]
[1744582499298,5.03826,1587.9,1587.7,1.5614]
[1744582499505,5.03778,1588.0,1587.5,1.5614]
[1744582499700,5.03778,1588.0,1587.2,5.04032]
[1744582499701,5.03947,1587.5,1587.1,7.7214]
[1744582499907,5.04014,1587.3,1586.9,6.60262]
[1744582500094,5.04076,1587.1,1586.9,1.33077816]
[1744582500311,5.04076,1587.1,1586.8,6.7051616]
[1744582500643,5.04113,1587.0,1586.8,6.7051616]
[1744582500847,5.04113,1587.0,1586.7,55.5634]
[1744582501321,5.04066,1587.1,1586.7,60.60528]
[1744582501529,1.5489,1587.5,1587.1,5.04063]
[1744582501746,6.58838,1587.5,1587.1,6.6377]
[1744582501943,3.0,1587.7,1587.1,6.6377]
[1744582501944,6.17,1587.8,1587.2,5.04017]
[1744582502149,5.03906,1587.6,1587.2,5.04017]
[1744582502348,5.03998,1587.4,1587.0,8.53]
[1744582502550,5.04,1587.3,1587.0,8.53]
[1744582503346,5.03998,1587.4,1587.0,8.53]
[1744582503506,5.0394,1587.5,1587.1,5.04062]
[1744582503713,5.0397,1587.4,1587.0,13.57093]
[1744582504148,5.04004,1587.3,1587.0,8.53]
[1744582504310,5.0405,1587.2,1587.0,7.98]
[1744582504512,5.0405,1587.2,1586.7,66.21801294]
[1744582504513,5.04064,1587.1,1586.7,59.04378]
[1744582505411,5.04064,1587.1,1586.7,59.04371]
[1744582505951,5.04034,1587.2,1586.8,5.59157]
[1744582506108,5.03947,1587.5,1587.1,5.0406]
[1744582506313,13.433916,1587.5,1587.1,5.0406]
[1744582506537,13.433916,1587.5,1587.2,0.12099632]
[1744582506920,5.03909,1587.6,1587.2,5.16130632]
[1744582507129,5.03909,1587.6,1587.3,5.03999]
[1744582507646,5.03937,1587.5,1587.4,0.11900885]
[1744582507823,5.03937,1587.5,1587.1,10.08106]
[1744582508023,5.03937,1587.5,1587.1,12.047086]
[1744582508224,5.03937,1587.5,1587.2,0.11900885]
[1744582508467,5.03909,1587.6,1587.2,5.15916885]
[1744582509318,5.03909,1587.6,1587.3,5.04]
[1744582509546,1.5489,1587.7,1587.4,5.03955]
[1744582509744,10.07707,1587.8,1587.4,5.15855885]
[1744582510149,5.03846,1587.8,1587.4,6.34443074]
[1744582510369,9.5309,1587.9,1587.4,1.30488074]
[1744582510518,5.03902,1587.7,1587.3,6.63718]
[1744582510738,10.07804,1587.7,1587.3,6.63718]
[1744582510974,5.03902,1587.7,1587.3,11.67706]
[1744582511252,10.07795,1587.7,1587.3,6.63708]
[1744582511672,14.56904,1587.9,1587.4,5.58968]
[1744582511834,14.56904,1587.9,1587.6,5.03901]
[1744582511835,6.58704,1587.9,1587.6,5.03901]
[1744582512181,5.03886,1587.7,1587.3,7.300858]
[1744582512751,6.58734,1587.8,1587.4,5.03955]
[1744582513082,6.58734,1587.8,1587.5,0.503955]
[1744582513439,5.03814,1587.9,1587.5,5.543215]
[1744582513640,5.03814,1587.9,1587.5,10.582445]
[1744582514077,10.07642,1587.9,1587.5,5.543185]
[1744582514947,10.07645,1587.9,1587.5,5.543185]
[1744582515149,5.03849,1587.8,1587.5,5.543185]
[1744582515543,5.03814,1587.9,1587.5,5.543185]
[1744582515745,1.5489,1588.0,1587.6,5.5933485]
[1744582516047,11.62471,1588.0,1587.6,5.5931985]
[1744582516243,5.03812,1587.9,1587.6,5.03888]
[1744582516491,5.03812,1587.9,1587.5,5.03932]
[1744582516645,5.03862,1587.8,1587.4,5.03963]
[1744582517399,10.07732,1587.8,1587.4,5.03963]
[1744582517574,1.5489,1588.0,1587.5,5.03935]
[1744582517575,5.03815,1587.9,1587.5,5.03935]
[1744582517746,5.03815,1587.9,1587.6,7.147375]
[1744582518088,6.58669,1588.0,1587.6,12.186275]
[1744582518287,6.58669,1588.0,1587.7,5.0387]
[1744582519049,15.70886,1588.2,1587.8,5.03826]
[1744582519252,9.53886,1588.2,1587.9,0.85543364]
[1744582519484,5.03778,1588.0,1587.9,0.35160764]
[1744582519688,5.03778,1588.0,1587.6,6.64339]
[1744582519893,5.03778,1588.0,1587.9,0.35160764]
[1744582520085,5.03752,1588.1,1587.6,1.6045]
[1744582520254,9.53879,1588.2,1587.9,5.03808]
[1744582520656,9.53879,1588.2,1587.8,10.07659]
[1744582520967,5.0379,1588.0,1587.8,1.007659]
[1744582521170,5.0379,1588.0,1587.7,5.03867]
[1744582521369,5.03747,1588.1,1587.7,10.07734]
[1744582521577,10.07525,1588.1,1587.7,5.03867]
[1744582521781,5.03778,1588.0,1587.7,5.03867]
[1744582521954,5.03778,1588.0,1587.7,5.757987]
[1744582522405,10.0758,1588.0,1587.6,6.64344]
[1744582522602,5.03778,1588.0,1587.7,5.03869]
[1744582522766,5.03751,1588.1,1587.7,5.03857]
[1744582522966,9.53878,1588.2,1587.8,5.03836]
[1744582523183,5.03688,1588.3,1587.9,6.64231]
[1744582523385,9.4596,1588.4,1587.9,2.323731]
[1744582523553,5.03742,1588.2,1587.9,1.6045]
[1744582523758,10.07484,1588.2,1587.9,1.6045]
[1744582523953,5.03742,1588.2,1587.9,1.6045]
[1744582524201,10.07476,1588.2,1587.9,1.6045]
[1744582524495,5.03734,1588.2,1587.9,1.6045]
[1744582525000,5.03734,1588.2,1587.9,6.64252]
[1744582525306,9.4596,1588.4,1588.1,5.0373]
[1744582525455,5.03644,1588.5,1588.1,10.0746]
[1744582525659,6.53748,1588.6,1588.2,6.64161]
[1744582525860,6.53748,1588.6,1588.2,6.64152]
[1744582526161,6.53748,1588.6,1588.2,11.67853]
[1744582526399,6.53748,1588.6,1588.3,1.167853]
[1744582527185,5.0366,1588.4,1588.2,1.6045]
[1744582527378,5.0362,1588.5,1588.2,1.6045]
[1744582527583,5.0362,1588.5,1588.2,6.64162]
[1744582528601,5.03633,1588.5,1588.2,1.6045]
[1744582528791,10.07275,1588.5,1588.2,1.6045]
[1744582529378,5.03633,1588.5,1588.2,1.6045]
[1744582529701,10.07272,1588.5,1588.2,1.6045]
[1744582529900,10.07272,1588.5,1588.2,2.268685]
[1744582530201,10.07272,1588.5,1588.2,0.664185]
[1744582530403,5.03633,1588.5,1588.2,0.664185]
[1744582532061,6.53752,1588.6,1588.2,0.664185]
[1744582532395,6.53752,1588.6,1588.2,5.03698]
[1744582532596,5.03709,1588.3,1588.0,1.6045]
[1744582532757,10.07418,1588.3,1588.0,1.6045]
[1744582533167,5.03709,1588.3,1588.0,1.6045]
[1744582533369,5.03631,1588.5,1588.0,6.64222]
[1744582533607,5.03655,1588.4,1588.1,5.03736]
[1744582535707,5.03631,1588.5,1588.1,10.07467]
[1744582536012,5.03652,1588.4,1588.1,5.03731]
[1744582536215,10.07324,1588.4,1588.1,0.55]
[1744582536384,5.03652,1588.4,1588.1,0.55]
[1744582537412,5.03625,1588.5,1588.3,1.5159]
[1744582538069,10.07261,1588.5,1588.3,1.5159]
[1744582539312,5.03651,1588.4,1588.1,2.0659]
[1744582539896,5.03651,1588.4,1588.1,7.10335]
[1744582540207,10.07265,1588.5,1588.1,12.14058]
[1744582540411,6.53757,1588.6,1588.2,11.288218]
[1744582540615,10.07204,1588.6,1588.2,6.251138]